bitfinex-derivatives/quotes_BTCF0:USTF0_20250313
["timestamp","ask_amount","ask_price","bid_price","bid_amount"]
[1741871930808,0.1209773,82675.0,82674.0,0.2906787]
[1741871931214,0.2927773,82676.0,82675.0,0.1209773]
[1741871931411,0.2927773,82676.0,82675.0,0.4425773]
[1741871931919,0.1718,82676.0,82675.0,0.4425773]
[1741871932114,0.00181527,82677.0,82675.0,0.4425773]
[1741871932322,0.00181527,82677.0,82676.0,0.1209758]
[1741871932814,0.00181527,82677.0,82676.0,0.4425758]
[1741871933516,0.12278957,82677.0,82676.0,0.4425758]
[1741871934119,0.12678957,82677.0,82676.0,0.4425758]
[1741871934518,0.28718957,82677.0,82676.0,0.4425758]
[1741871934821,0.12678957,82677.0,82676.0,0.4425758]
[1741871935018,0.12678957,82677.0,82676.0,0.3216]
[1741871935317,0.29118957,82677.0,82676.0,0.1626]
[1741871935507,0.29118957,82677.0,82666.0,0.06067624]
[1741871935508,0.1209831,82671.0,82667.0,0.1573]
[1741871935711,0.1604,82670.0,82666.0,0.00018154]
[1741871935908,0.120989,82667.0,82666.0,0.00018154]
[1741871936116,0.120989,82667.0,82666.0,0.15908154]
[1741871936322,0.120989,82667.0,82666.0,0.28007194]
[1741871937311,0.120989,82667.0,82666.0,0.15908154]
[1741871937517,0.121989,82667.0,82666.0,0.00018154]
[1741871937713,0.13303208,82667.0,82666.0,0.00018154]
[1741871937914,0.13403208,82667.0,82666.0,0.12117194]
[1741871938121,0.122989,82667.0,82666.0,0.12117194]
[1741871938423,0.122989,82667.0,82666.0,0.28007194]
[1741871939019,0.002,82667.0,82666.0,0.28007194]
[1741871939218,0.122989,82667.0,82666.0,0.44957194]
[1741871939721,0.125989,82667.0,82666.0,0.15908154]
[1741871939916,0.125989,82667.0,82666.0,0.00018154]
[1741871940116,0.128989,82667.0,82666.0,0.00018154]
[1741871940317,0.13612844,82667.0,82666.0,0.00018154]
[1741871940511,0.1210065,82655.0,82651.0,0.1676]
[1741871940712,0.1210212,82645.0,82644.0,0.285119]
[1741871940923,0.1210212,82645.0,82644.0,0.452719]
[1741871941121,0.13338387,82645.0,82644.0,0.288619]
[1741871941326,0.13338387,82645.0,82644.0,0.1676]
[1741871941622,0.13338387,82645.0,82644.0,0.2886227]
[1741871942023,0.29398387,82645.0,82644.0,0.2886227]
[1741871943516,0.30516999,82645.0,82644.0,0.2886227]
[1741871943721,0.29398387,82645.0,82644.0,0.2886227]
[1741871944121,0.30817301,82645.0,82644.0,0.2886227]
[1741871944521,0.31117301,82645.0,82644.0,0.2886227]
[1741871944916,0.29698387,82645.0,82644.0,0.2886227]
[1741871945126,0.29998387,82645.0,82644.0,0.2886227]
[1741871945426,0.31112096,82645.0,82644.0,0.2886227]
[1741871946026,0.29998387,82645.0,82644.0,0.2886227]
[1741871946429,0.31116788,82645.0,82644.0,0.2886227]
[1741871946629,0.30098387,82645.0,82644.0,0.2886227]
[1741871947126,0.3121655,82645.0,82644.0,0.2886227]
[1741871947522,0.30098387,82645.0,82644.0,0.2886227]
[1741871948031,0.31216161,82645.0,82644.0,0.2886227]
[1741871948330,0.30916187,82645.0,82644.0,0.2886227]
[1741871948531,0.00018143,82653.0,82644.0,0.1676]
[1741871948723,0.00018143,82653.0,82652.0,0.1210109]
[1741871949428,0.00018143,82653.0,82652.0,0.4399109]
[1741871950323,0.12119093,82653.0,82652.0,0.4399109]
[1741871950529,0.12119093,82653.0,82652.0,0.2842109]
[1741871951126,0.44519093,82653.0,82652.0,0.2842109]
[1741871951335,0.32418143,82653.0,82645.0,0.0605104]
[1741871951634,0.32418143,82653.0,82637.0,0.4194]
[1741871951635,0.1815442,82640.0,82639.0,0.1210218]
[1741871951835,0.1815442,82640.0,82639.0,0.2420447]
[1741871952132,0.1601,82642.0,82641.0,0.121027]
[1741871952320,0.1601,82642.0,82641.0,0.449227]
[1741871952524,0.2811256,82642.0,82641.0,0.449227]
[1741871952728,0.1601,82642.0,82641.0,0.449227]
[1741871953533,0.1815241,82652.0,82651.0,0.1210109]
[1741871953733,0.5108241,82652.0,82651.0,0.1210109]
[1741871954130,0.52926341,82652.0,82651.0,0.1210109]
[1741871954632,0.1815244,82650.0,82649.0,0.1210143]
[1741871954832,0.1815464,82639.0,82638.0,0.1210252]
[1741871955331,0.1210314,82638.0,82637.0,0.1210314]
[1741871955536,0.4437314,82638.0,82637.0,0.1210314]
[1741871956127,0.45604832,82638.0,82637.0,0.1210314]
[1741871956327,0.45604832,82638.0,82625.0,0.01189891]
[1741871956623,0.1210329,82637.0,82624.0,0.0605256]
[1741871956827,0.1210329,82637.0,82620.0,0.34967917]
[1741871956828,0.1815837,82623.0,82622.0,0.1815712]
[1741871957026,0.0605274,82623.0,82622.0,0.3631439]
[1741871957226,0.0605258,82625.0,82622.0,0.1210499]
[1741871957439,0.0605258,82625.0,82624.0,0.1210519]
[1741871958731,0.0605258,82625.0,82624.0,0.1230519]
[1741871959139,0.07258895,82625.0,82624.0,0.1230519]
[1741871959432,0.0605258,82625.0,82624.0,0.1230519]
[1741871960138,0.1210467,82628.0,82625.0,0.1210505]
[1741871960433,0.1210467,82628.0,82624.0,0.002]
[1741871960434,0.01237132,82628.0,82627.0,0.1815713]
[1741871960634,0.00018155,82633.0,82632.0,0.1210402]
[1741871961338,5e-08,82633.0,82632.0,0.14333901]
[1741871961543,0.09678064,82652.0,82651.0,0.1210124]
[1741871961834,0.09678064,82652.0,82651.0,0.3810124]
[1741871961835,4e-08,82652.0,82651.0,0.3810124]
[1741871963431,0.00018155,82660.0,82659.0,0.1210007]
[1741871963636,0.1209792,82674.0,82673.0,0.1209802]
[1741871963832,0.1321421,82674.0,82673.0,0.1209802]
[1741871964143,0.14444816,82674.0,82673.0,0.1209802]
[1741871964437,0.14444816,82674.0,82660.0,0.0604992]
[1741871964438,0.02346896,82674.0,82660.0,0.0604992]
[1741871964642,0.1209978,82661.0,82656.0,0.0605024]
[1741871964936,0.2967621,82660.0,82659.0,0.00118144]
[1741871967043,0.1210241,82643.0,82639.0,0.1210299]
[1741871967232,0.132187,82643.0,82642.0,0.41017647]
[1741871968039,0.13233377,82643.0,82642.0,0.41017647]
[1741871968241,0.14374986,82643.0,82642.0,0.41017647]
[1741871968646,0.14374986,82643.0,82642.0,0.1210256]
[1741871969043,0.13244019,82643.0,82642.0,0.1210256]
[1741871969245,0.14445099,82643.0,82642.0,0.1210256]
[1741871969447,0.1815442,82641.0,82640.0,0.1210274]
[1741871969637,0.08323723,82641.0,82640.0,0.1210274]
[1741871969833,0.25373723,82641.0,82640.0,0.1210274]
[1741871970033,0.25376249,82641.0,82640.0,0.1210274]
[1741871970536,0.13246835,82641.0,82640.0,0.1210274]
[1741871970944,0.15096263,82641.0,82640.0,0.1210274]
[1741871971146,0.02993563,82641.0,82640.0,0.1210274]
[1741871971443,0.01144135,82641.0,82640.0,0.1210274]
[1741871971639,0.1210269,82642.0,82641.0,0.121027]
[1741871971943,0.30308732,82642.0,82641.0,0.290127]
[1741871972141,0.45808732,82642.0,82641.0,0.290127]
[1741871972640,0.46940459,82642.0,82641.0,0.290127]
[1741871973237,0.1210358,82635.0,82634.0,0.00018144]
[1741871973449,0.13259622,82635.0,82634.0,0.00018144]
[1741871974541,0.13259622,82635.0,82634.0,0.12121874]
[1741871974754,0.13359622,82635.0,82634.0,0.12121874]
[1741871975241,0.13359622,82635.0,82634.0,0.28911874]
[1741871975439,0.13359622,82635.0,82634.0,0.45931874]
[1741871976640,0.13359622,82635.0,82634.0,0.28911874]
[1741871976830,0.13359622,82635.0,82634.0,0.12121874]
[1741871977843,0.01234576,82635.0,82634.0,0.28881874]
[1741871978246,0.3432,82650.0,82634.0,0.16778144]
[1741871978446,0.01132177,82649.0,82648.0,0.1210153]
[1741871979233,0.13233707,82649.0,82648.0,0.1210153]
[1741871979439,0.47253707,82649.0,82648.0,0.1210153]
[1741871979743,0.47264242,82649.0,82648.0,0.1210153]
[1741871980048,0.36292467,82649.0,82648.0,0.1210153]
[1741871980234,0.03453113,82649.0,82648.0,0.1210153]
[1741871980633,0.01142712,82649.0,82648.0,0.1210153]
[1741871981046,0.00018144,82651.0,82648.0,0.2785]
[1741871981255,0.1209862,82669.0,82668.0,0.1209861]
[1741871981644,0.00181536,82671.0,82670.0,0.1209846]
[1741871982263,0.00181536,82671.0,82670.0,0.1331801]
[1741871982546,6e-08,82671.0,82670.0,0.1931801]
[1741871982750,0.00018113,82679.0,82678.0,0.1209729]
[1741871982946,0.52291651,82696.0,82678.0,0.24]
[1741871983138,0.69381651,82696.0,82690.0,0.1209553]
[1741871983341,0.52355651,82696.0,82690.0,0.1209553]
[1741871983644,0.35431651,82696.0,82690.0,0.3809553]
[1741871984445,0.1209481,82695.0,82690.0,0.3809553]
[1741871984644,0.21880594,82697.0,82690.0,0.3809553]
[1741871984645,0.120946,82697.0,82696.0,0.1209451]
[1741871985245,0.1686,82700.0,82698.0,0.1209436]
[1741871985450,0.2895412,82700.0,82699.0,0.1209422]
[1741871985955,0.0604727,82697.0,82690.0,0.0604773]
[1741871986157,0.1209553,82691.0,82690.0,0.0604773]
[1741871986353,0.1209656,82683.0,82682.0,0.12114644]
[1741871986652,0.1209656,82683.0,82682.0,0.00018144]
[1741871986859,0.1814759,82674.0,82673.0,0.1209735]
[1741871987549,0.0604894,82674.0,82673.0,0.1209735]
[1741871988052,0.0604879,82676.0,82675.0,0.1209773]
[1741871988260,0.00018144,82682.0,82673.0,0.004]
[1741871988554,0.00018144,82682.0,82681.0,0.1209685]
[1741871988942,0.00018144,82682.0,82674.0,0.2116093]
[1741871989147,0.00018144,82682.0,82680.0,0.1209685]
[1741871989349,0.12114844,82682.0,82681.0,0.1209685]
[1741871990054,0.00018144,82682.0,82681.0,0.1209685]
[1741871990253,0.12114844,82682.0,82681.0,0.1209685]
[1741871990651,0.12114844,82682.0,82675.0,0.0604882]
[1741871990652,0.0604857,82679.0,82675.0,0.0604882]
[1741871990957,0.0604849,82681.0,82665.0,0.00018144]
[1741871990958,0.1209904,82666.0,82665.0,0.00018144]
[1741871991153,0.1209904,82666.0,82665.0,0.12117334]
[1741871991553,0.1209904,82666.0,82665.0,0.00018144]
[1741871991760,0.4409904,82666.0,82665.0,0.00018144]
[1741871991956,0.4409904,82666.0,82665.0,0.12117334]
[1741871992463,0.4409904,82666.0,82665.0,0.00018144]
[1741871992659,0.4409904,82666.0,82665.0,0.12117334]
[1741871993165,0.46365448,82666.0,82665.0,0.12117334]
[1741871994963,0.45232055,82666.0,82665.0,0.12117334]
[1741871995660,0.4409904,82666.0,82665.0,0.12117334]
[1741871996365,0.4409904,82666.0,82665.0,0.00018144]
[1741871996569,0.5919904,82666.0,82665.0,0.00018144]
[1741871996756,0.1210036,82657.0,82656.0,0.060502]
[1741871999158,0.1210095,82653.0,82652.0,0.1691]
[1741871999363,0.1443655,82653.0,82652.0,0.2901109]
[1741871999661,0.0605069,82651.0,82648.0,0.00018144]
[1741871999864,0.1210153,82649.0,82648.0,0.00018144]
[1741872000063,0.13231422,82649.0,82648.0,0.00018144]
[1741872000362,0.14358266,82649.0,82648.0,0.00018144]
[1741872000566,0.31248266,82649.0,82648.0,0.00018144]
[1741872000755,0.47948266,82649.0,82648.0,0.00018144]
[1741872001063,0.46821422,82649.0,82648.0,0.00018144]
[1741872001557,0.46821422,82649.0,82648.0,0.12119824]
[1741872002360,0.46821422,82649.0,82648.0,0.00018144]
[1741872005259,0.46821422,82649.0,82648.0,0.12119824]
[1741872005568,0.46821422,82649.0,82648.0,0.00018144]
[1741872005761,0.61909422,82649.0,82648.0,0.00018144]
[1741872005962,0.61878808,82649.0,82648.0,0.00018144]
[1741872006159,0.61878808,82649.0,82648.0,0.12119824]
[1741872006160,0.01099278,82649.0,82648.0,0.12119824]
[1741872006464,0.1676,82654.0,82648.0,0.32818144]
[1741872006654,0.6660761,82662.0,82661.0,0.1209978]
[1741872006961,0.3941992,82662.0,82661.0,0.1209978]
[1741872007161,0.4063964,82662.0,82661.0,0.1209978]
[1741872007360,0.1210022,82658.0,82657.0,0.1579]
[1741872007764,0.13199747,82658.0,82657.0,0.1579]
[1741872008159,0.13199747,82658.0,82653.0,0.0605041]
[1741872008160,0.1210036,82657.0,82656.0,0.1210038]
[1741872008469,0.45889887,82657.0,82656.0,0.1210038]
[1741872009174,0.4479036,82657.0,82656.0,0.2831038]
[1741872009361,0.45913385,82657.0,82656.0,0.2831038]
[1741872009564,0.4479036,82657.0,82656.0,0.2831038]
[1741872010267,0.45919005,82657.0,82656.0,0.4475038]
[1741872010463,0.45919005,82657.0,82648.0,0.00018144]
[1741872010673,0.1210153,82649.0,82648.0,0.00018144]
[1741872010969,0.13230175,82649.0,82648.0,0.12119824]
[1741872011168,0.14357652,82649.0,82648.0,0.00018144]
[1741872011466,0.14357652,82649.0,82648.0,0.12119824]
[1741872011867,0.14357432,82649.0,82648.0,0.00018144]
[1741872012064,0.13229955,82649.0,82648.0,0.00018144]
[1741872012768,0.1210417,82631.0,82630.0,0.4470419]
[1741872013569,0.1210417,82631.0,82630.0,0.326]
[1741872013769,0.2819417,82631.0,82630.0,0.4470432]
[1741872013966,0.2819417,82631.0,82630.0,0.4510432]
[1741872014164,0.2819417,82631.0,82630.0,0.2866432]
[1741872014371,0.2819417,82631.0,82630.0,0.2906432]
[1741872014870,0.29321845,82631.0,82630.0,0.2906432]
[1741872015072,0.29321845,82631.0,82630.0,0.008]
[1741872015073,0.46759751,82631.0,82630.0,0.008]
[1741872015276,0.1210476,82627.0,82626.0,0.2161739]
[1741872015573,0.13234642,82627.0,82626.0,0.2161739]
[1741872015965,0.13234642,82627.0,82625.0,0.1210499]
[1741872015966,0.02257557,82627.0,82625.0,0.1210499]
[1741872016161,0.34359882,82626.0,82623.0,0.0605265]
[1741872016370,0.1210519,82624.0,82623.0,0.0605265]
[1741872016568,0.1210534,82623.0,82618.0,0.1707]
[1741872016770,0.46384851,82623.0,82620.0,0.1210572]
[1741872016968,0.46384851,82623.0,82622.0,0.12123634]
[1741872017275,0.01129511,82623.0,82622.0,0.12123634]
[1741872017469,0.14362526,82623.0,82622.0,0.12123634]
[1741872017673,0.14362651,82623.0,82622.0,0.12123634]
[1741872018170,0.14262651,82623.0,82622.0,0.12123634]
[1741872018376,0.14262651,82623.0,82622.0,0.00018144]
[1741872018675,0.14262651,82623.0,82622.0,0.12123634]
[1741872018873,0.14262651,82623.0,82622.0,0.12323634]
[1741872019072,0.14262651,82623.0,82622.0,0.45883634]
[1741872019277,0.13233015,82623.0,82622.0,0.45883634]
[1741872019574,0.02267274,82623.0,82622.0,0.45883634]
[1741872020167,0.14372614,82623.0,82622.0,0.45883634]
[1741872020570,0.02267274,82623.0,82622.0,0.45883634]
[1741872021062,0.01127675,82623.0,82622.0,0.47118405]
[1741872021268,0.01127675,82623.0,82622.0,0.49118405]
[1741872021469,0.00018144,82639.0,82638.0,0.1210314]
[1741872021866,0.12121144,82639.0,82638.0,0.1210314]
[1741872022168,0.1210373,82634.0,82633.0,0.3171]
[1741872022365,0.13233498,82634.0,82633.0,0.4381388]
[1741872023172,0.29893498,82634.0,82633.0,0.4381388]
[1741872023584,0.29993498,82634.0,82633.0,0.4381388]
[1741872024280,0.01329768,82634.0,82633.0,0.4381388]
[1741872024878,0.13333498,82634.0,82633.0,0.4381388]
[1741872025079,0.13733498,82634.0,82633.0,0.4381388]
[1741872025285,0.14133498,82634.0,82633.0,0.4381388]
[1741872025466,0.02029768,82634.0,82633.0,0.4381388]
[1741872025775,0.14133498,82634.0,82633.0,0.4381388]
[1741872026076,0.13633498,82634.0,82633.0,0.4381388]
[1741872026279,0.14133498,82634.0,82633.0,0.4381388]
[1741872026669,0.02029768,82634.0,82633.0,0.4381388]
[1741872027378,0.00018144,82639.0,82633.0,0.5923388]
[1741872027569,0.00018144,82639.0,82638.0,0.1210314]
[1741872027878,0.01150416,82639.0,82638.0,0.1210314]
[1741872028577,0.01650416,82639.0,82638.0,0.1210314]
[1741872029265,0.13753416,82639.0,82638.0,0.1210314]
[1741872029470,0.13753416,82639.0,82638.0,0.001]
[1741872030477,0.1210476,82627.0,82626.0,0.1635]
[1741872030680,0.13237032,82627.0,82626.0,0.284549]
[1741872030873,0.14467756,82627.0,82626.0,0.284549]
[1741872031371,0.46027756,82627.0,82626.0,0.284549]
[1741872031782,0.46027756,82627.0,82626.0,0.1635]
[1741872032481,0.1210534,82623.0,82622.0,0.21635534]
[1741872032670,0.13237612,82623.0,82622.0,0.21635534]
[1741872032982,0.28237612,82623.0,82600.0,0.1]
[1741872033183,0.1210725,82610.0,82609.0,0.16326264]
[1741872033380,0.28295522,82610.0,82609.0,0.16326264]
[1741872033679,0.29431807,82610.0,82609.0,0.03726034]
[1741872033879,0.1210857,82601.0,82600.0,0.1]
[1741872034079,0.13240842,82601.0,82600.0,0.1]
[1741872034280,0.29377127,82601.0,82600.0,0.0681057]
[1741872034588,0.1210974,82593.0,82592.0,0.00018155]
[1741872034794,0.28294012,82593.0,82592.0,0.00018155]
[1741872035487,0.62383823,82593.0,82592.0,0.00018155]
[1741872035780,0.62283823,82593.0,82592.0,0.00018155]
[1741872036781,0.62483823,82593.0,82592.0,0.00018155]
[1741872037084,0.62583823,82593.0,82592.0,0.00018155]
[1741872037273,0.63717735,82593.0,82592.0,0.00018155]
[1741872037674,0.63717735,82593.0,82592.0,0.12128035]
[1741872038091,0.63717735,82593.0,82592.0,0.00018155]
[1741872038271,0.63717735,82593.0,82592.0,0.12128035]
[1741872038884,0.63717735,82593.0,82592.0,0.28728035]
[1741872039086,0.20475995,82593.0,82592.0,0.28728035]
[1741872039289,0.20475995,82593.0,82592.0,0.44608035]
[1741872039482,0.02570487,82593.0,82592.0,0.44608035]
[1741872039792,0.15886495,82593.0,82592.0,0.32498155]
[1741872039976,0.15886495,82593.0,82592.0,0.44608035]
[1741872040378,0.48216495,82593.0,82592.0,0.44608035]
[1741872040887,0.20036755,82593.0,82592.0,0.44608035]
[1741872041082,0.03776755,82593.0,82592.0,0.44608035]
[1741872041691,0.02642843,82593.0,82592.0,0.44608035]
[1741872041879,0.14752583,82593.0,82592.0,0.44608035]
[1741872042283,0.14752583,82593.0,82592.0,0.16618155]
[1741872042685,0.31112583,82593.0,82592.0,0.00018155]
[1741872043092,0.32244936,82593.0,82592.0,0.12128035]
[1741872043592,0.32244936,82593.0,82592.0,0.00018155]
[1741872044492,0.49157074,82593.0,82592.0,0.00018155]
[1741872045496,0.47292936,82593.0,82592.0,0.00018155]
[1741872047790,0.46160583,82593.0,82592.0,0.00018155]
[1741872052599,0.121115,82581.0,82580.0,0.154]
[1741872052790,0.13248075,82581.0,82580.0,0.154]
[1741872052991,0.13248075,82581.0,82580.0,0.2751164]
[1741872053186,0.13248075,82581.0,82580.0,0.154]
[1741872053491,0.14375007,82581.0,82580.0,0.154]
[1741872054191,0.13648075,82581.0,82580.0,0.154]
[1741872054394,0.0605611,82576.0,82570.0,0.1211299]
[1741872054593,0.1211267,82573.0,82571.0,0.1651]
[1741872054898,0.13249245,82573.0,82572.0,0.16138155]
[1741872055192,0.46659245,82573.0,82572.0,0.16138155]
[1741872055589,0.46659245,82573.0,82572.0,0.28250975]
[1741872056099,0.46659245,82573.0,82572.0,0.44760975]
[1741872056696,0.01136575,82573.0,82572.0,0.44760975]
[1741872056907,0.1261267,82573.0,82572.0,0.67237315]
[1741872057602,0.13730521,82573.0,82572.0,0.67237315]
[1741872059103,0.01617851,82573.0,82572.0,0.67237315]
[1741872059306,0.01517851,82573.0,82572.0,0.67237315]
[1741872059504,0.13630521,82573.0,82572.0,0.67237315]
[1741872060000,0.13230521,82573.0,82572.0,0.67237315]
[1741872060201,0.13430521,82573.0,82572.0,0.67237315]
[1741872060602,0.13530521,82573.0,82572.0,0.32648155]
[1741872060804,0.29590521,82573.0,82572.0,0.44760975]
[1741872060996,0.45980521,82573.0,82572.0,0.44760975]
[1741872061501,0.45980521,82573.0,82572.0,0.32648155]
[1741872061804,0.45980521,82573.0,82572.0,0.44760975]
[1741872061805,0.13330521,82573.0,82572.0,0.44760975]
[1741872061996,0.13530521,82573.0,82572.0,0.44760975]
[1741872062612,0.13330521,82573.0,82572.0,0.44760975]
[1741872062804,0.13630521,82573.0,82572.0,0.44760975]
[1741872063104,0.29820521,82573.0,82572.0,0.44760975]
[1741872063294,0.46310521,82573.0,82572.0,0.44760975]
[1741872063496,0.46310521,82573.0,82572.0,0.32648155]
[1741872063800,0.46310521,82573.0,82572.0,0.44760975]
[1741872064196,0.29920521,82573.0,82572.0,0.44760975]
[1741872064405,0.13730521,82573.0,82572.0,0.44760975]
[1741872065303,0.30230521,82573.0,82572.0,0.44760975]
[1741872065498,0.30530521,82573.0,82572.0,0.44760975]
[1741872066096,0.30230521,82573.0,82572.0,0.44760975]
[1741872066296,0.30530521,82573.0,82572.0,0.44760975]
[1741872067299,0.2941267,82573.0,82572.0,0.44760975]
[1741872067498,0.30528415,82573.0,82572.0,0.44760975]
[1741872067906,0.01615745,82573.0,82572.0,0.44760975]
[1741872068205,0.13728415,82573.0,82572.0,0.44760975]
[1741872068711,0.13728415,82573.0,82572.0,0.16528155]
[1741872069005,0.01615745,82573.0,82572.0,0.28640975]
[1741872069399,0.01615745,82573.0,82572.0,0.44300975]
[1741872069805,0.005,82573.0,82572.0,0.44300975]
[1741872070096,0.1261267,82573.0,82572.0,0.44300975]
[1741872070798,0.005,82573.0,82572.0,0.44300975]
[1741872072412,0.002,82573.0,82572.0,0.44400975]
[1741872072612,0.002,82573.0,82572.0,0.57400975]
[1741872072905,0.17814707,82576.0,82575.0,0.1211238]
[1741872073105,0.21358044,82581.0,82580.0,0.1211164]
[1741872073312,0.00018155,82589.0,82588.0,0.1211047]
[1741872073605,0.1649,82607.0,82597.0,0.1210915]
[1741872073606,0.24854928,82598.0,82597.0,0.1210915]
[1741872073802,0.24673223,82598.0,82597.0,0.1210915]
[1741872074402,0.2819797,82603.0,82597.0,0.1210915]
[1741872074403,0.2819797,82603.0,82597.0,0.5429281]
[1741872074606,0.2819797,82603.0,82602.0,0.1210842]
[1741872074912,0.2819797,82603.0,82602.0,0.1410842]
[1741872076213,0.4030624,82603.0,82602.0,0.1210842]
[1741872077000,0.2819797,82603.0,82602.0,0.1210842]
[1741872077206,0.4030624,82603.0,82602.0,0.1220842]
[1741872077912,0.2819797,82603.0,82602.0,0.1210842]
[1741872078212,0.1210808,82605.0,82599.0,0.060544]
[1741872078401,0.00018166,82606.0,82605.0,0.1210798]
[1741872078809,0.00018166,82606.0,82605.0,0.4384798]
[1741872079707,0.00118166,82606.0,82605.0,0.4384798]
[1741872082413,0.1661,82628.0,82605.0,0.5774]
[1741872082608,0.165,82626.0,82621.0,0.1210563]
[1741872082806,0.1210549,82622.0,82621.0,0.1210563]
[1741872083019,0.1210622,82618.0,82617.0,0.1210612]
[1741872083216,0.1210622,82618.0,82617.0,0.2810612]
[1741872083516,0.2860622,82618.0,82617.0,0.2810612]
[1741872083713,0.4486622,82618.0,82617.0,0.2810612]
[1741872083905,0.1815991,82616.0,82615.0,0.1210647]
[1741872084111,0.0605325,82616.0,82613.0,0.0605337]
[1741872084307,0.1210666,82614.0,82613.0,0.0605337]
[1741872084515,0.0605347,82613.0,82603.0,0.3169]
[1741872084815,0.1210725,82610.0,82609.0,0.12125556]
[1741872085115,0.1210725,82610.0,82609.0,0.27935556]
[1741872085315,0.0605347,82612.0,82609.0,0.31518166]
[1741872085520,0.14296645,82622.0,82621.0,0.1210563]
[1741872085704,0.001,82622.0,82621.0,0.1210563]
[1741872086017,0.0605202,82632.0,82625.0,0.1210505]
[1741872086211,0.12123066,82626.0,82625.0,0.1210505]
[1741872086715,0.1332704,82626.0,82625.0,0.1210505]
[1741872087717,0.1332704,82626.0,82625.0,0.2791505]
[1741872088018,0.1332704,82626.0,82625.0,0.4316505]
[1741872089318,0.00518166,82626.0,82625.0,0.4316505]
[1741872092914,0.0605121,82643.0,82640.0,0.1815391]
[1741872093111,0.1815377,82643.0,82642.0,0.1210256]
[1741872093515,0.19368118,82643.0,82642.0,0.1210256]
[1741872094111,0.1210373,82635.0,82634.0,0.00018154]
[1741872094519,0.2708373,82635.0,82634.0,0.00018154]
[1741872098318,0.4214373,82635.0,82634.0,0.00018154]
[1741872099623,0.1506,82635.0,82634.0,0.12121884]
[1741872100012,0.1506,82635.0,82634.0,0.42541884]
[1741872100518,2.1046887,82703.0,82634.0,0.42438154]
[1741872100519,0.14972,82653.0,82634.0,0.42438154]
[1741872100827,0.1602,82647.0,82642.0,0.060512]
[1741872101022,0.1602,82647.0,82646.0,0.1210197]
[1741872101418,0.00018154,82651.0,82650.0,0.1210139]
[1741872101921,0.00018154,82651.0,82648.0,0.0605077]
[1741872102125,0.1210139,82650.0,82649.0,0.2730139]
[1741872102328,0.4454139,82650.0,82649.0,0.2730139]
[1741872102814,0.1210212,82645.0,82644.0,0.1210191]
[1741872103017,0.1210212,82645.0,82644.0,0.2812191]
[1741872103727,0.2802212,82645.0,82644.0,0.2812191]
[1741872104321,0.2802212,82645.0,82644.0,0.0605084]
[1741872105726,0.1592,82645.0,82644.0,0.0605084]
[1741872106030,0.2802212,82645.0,82644.0,0.0605084]
[1741872106327,0.2802212,82645.0,82644.0,0.2250084]
[1741872106528,0.1592,82645.0,82644.0,0.2250084]
[1741872106733,0.2802212,82645.0,82644.0,0.2250084]
[1741872107329,0.06068794,82651.0,82650.0,0.1210139]
[1741872107529,0.00018154,82651.0,82650.0,0.1210139]
[1741872107828,0.12119394,82651.0,82650.0,0.1210139]
[1741872108019,0.12119394,82651.0,82650.0,0.4343139]
[1741872108930,0.1815464,82640.0,82639.0,0.1210205]
[1741872109113,0.1815464,82640.0,82639.0,0.2620416]
[1741872109519,0.1815464,82640.0,82639.0,0.5631416]
[1741872110327,0.1815464,82640.0,82639.0,0.5431416]
[1741872110529,0.3382464,82640.0,82639.0,0.5431416]
[1741872110720,0.3382464,82640.0,82639.0,0.4221205]
[1741872111319,0.35049107,82640.0,82639.0,0.1523]
[1741872111520,0.1210358,82635.0,82634.0,0.00018154]
[1741872112032,0.4405358,82635.0,82634.0,0.00018154]
[1741872114218,0.4405358,82635.0,82634.0,0.12121884]
[1741872114918,0.1573,82635.0,82634.0,0.27611884]
[1741872115120,0.331052,82647.0,82634.0,0.15508154]
[1741872115324,0.331052,82647.0,82646.0,0.1210197]
[1741872115827,0.34316401,82647.0,82646.0,0.1210197]
[1741872116734,0.19364401,82647.0,82646.0,0.1210197]
[1741872116935,0.34474401,82647.0,82646.0,0.4433197]
[1741872117523,0.34474401,82647.0,82634.0,0.00018154]
[1741872117731,0.34474401,82647.0,82636.0,0.1815402]
[1741872117732,0.181553,82637.0,82636.0,0.1815402]
[1741872118937,0.181553,82637.0,82636.0,0.3459402]
[1741872122026,0.0605172,82637.0,82635.0,0.1579]
[1741872122226,0.4318344,82636.0,82634.0,0.00018154]
[1741872122427,0.4318344,82636.0,82635.0,0.1210358]
[1741872122641,0.4318344,82636.0,82635.0,0.4327358]
[1741872123045,0.1210358,82635.0,82634.0,0.00018154]
[1741872123237,0.1210358,82635.0,82634.0,0.12121884]
[1741872123542,0.4264358,82635.0,82634.0,0.12121884]
[1741872123744,0.4264358,82635.0,82634.0,0.27171884]
[1741872124443,0.4264358,82635.0,82634.0,0.43441884]
[1741872124642,0.1545,82635.0,82634.0,0.43441884]
[1741872124839,0.1210316,82638.0,82637.0,0.1210314]
[1741872125039,0.1210316,82638.0,82637.0,0.4445314]
[1741872125843,0.4363316,82638.0,82637.0,0.4445314]
[1741872127641,0.1210358,82635.0,82634.0,0.00018154]
[1741872128045,0.2808358,82635.0,82634.0,0.00018154]
[1741872128254,0.3096,82635.0,82626.0,0.0605242]
[1741872128443,0.1815706,82628.0,82627.0,0.2781462]
[1741872128846,0.1636,82637.0,82600.0,0.5577138]
[1741872128847,0.3096,82629.0,82600.0,0.5577138]
[1741872129152,0.1210725,82611.0,82610.0,0.4597657]
[1741872129647,0.00018154,82619.0,82618.0,0.1210607]
[1741872129854,0.33523122,82655.0,82634.0,0.1210358]
[1741872129855,0.1598,82636.0,82634.0,0.1210358]
[1741872130035,0.14932,82644.0,82639.0,0.12103]
[1741872130236,2e-08,82640.0,82639.0,0.12103]
[1741872130843,0.21411792,82655.0,82639.0,0.44038708]
[1741872131147,0.14802404,82655.0,82642.0,0.0605124]
[1741872131336,0.159,82668.0,82645.0,0.1383138]
[1741872131540,0.13085352,82661.0,82660.0,0.1209992]
[1741872131741,0.159,82668.0,82657.0,0.0605015]
[1741872131938,0.159,82668.0,82667.0,0.120989]
[1741872132644,0.49236256,82669.0,82667.0,0.120989]
[1741872132950,0.49236256,82669.0,82668.0,0.1209875]
[1741872133446,0.49236256,82669.0,82668.0,0.2839875]
[1741872133649,0.49236256,82669.0,82668.0,0.4412875]
[1741872135045,0.00018125,82676.0,82675.0,0.1209773]
[1741872135253,0.00903677,82687.0,82686.0,0.1209612]
[1741872135557,0.16993677,82687.0,82686.0,0.1209612]
[1741872135945,0.01213487,82691.0,82690.0,0.1209553]
[1741872136144,0.1609,82693.0,82692.0,0.1209524]
[1741872136956,0.17294668,82693.0,82692.0,0.1209524]
[1741872137152,0.1609,82693.0,82692.0,0.1209524]
[1741872137653,0.34989971,82700.0,82699.0,0.1209422]
[1741872138155,0.36209136,82700.0,82699.0,0.1209422]
[1741872138346,0.11219165,82700.0,82699.0,0.1209422]
[1741872140156,0.24989971,82723.0,82716.0,0.1209173]
[1741872140358,0.21269521,82723.0,82722.0,0.1209085]